[Event "Allsvenskan Div I 3 2023/2024: SS Manhem - SS Manhem II"]
[Site "Goteborgs schackcentrum, Vegagatan 20, Gothenburg, Sweden"]
[Date "2023.11.19"]
[Round "1.5"]
[White "Lennerstad, Allan"]
[Black "Lindholm, Gustav"]
[Result "0-1"]
[TimeControl "90 minutes for 40 moves + 30 minutes for the rest of the game + 30 seconds per move from move one."]
[WhiteFideId "1723774"]
[BlackFideId "1736515"]
[WhiteElo "1923"]
[BlackElo "2102"]

1. d4 {[%clk 01:30:55]} {[%emt 00:00:05]} Nf6 {[%clk 01:30:42]} {[%emt
00:00:18]} 2. c4 {[%clk 01:31:20]} {[%emt 00:00:06]} e6 {[%clk 01:31:07]}
{[%emt 00:00:04]} 3. g3 {[%clk 01:31:44]} {[%emt 00:00:06]} d5 {[%clk
01:31:19]} {[%emt 00:00:18]} 4. Bg2 {[%clk 01:32:08]} {[%emt 00:00:06]} Bb4+
{[%clk 01:31:16]} {[%emt 00:00:34]} 5. Nd2 {[%clk 01:32:21]} {[%emt 00:00:16]}
O-O {[%clk 01:31:15]} {[%emt 00:00:30]} 6. a3 {[%clk 01:32:32]} {[%emt
00:00:20]} Be7 {[%clk 01:30:43]} {[%emt 00:01:02]} 7. Ngf3 {[%clk 01:32:39]}
{[%emt 00:00:23]} c5 {[%clk 01:29:36]} {[%emt 00:01:37]} 8. O-O {[%clk
01:29:35]} {[%emt 00:03:34]} a5 {[%clk 01:27:42]} {[%emt 00:02:24]} 9. cxd5
{[%clk 01:21:45]} {[%emt 00:08:20]} Qxd5 {[%clk 01:23:54]} {[%emt 00:04:17]} 10.
Qb3 {[%clk 01:17:10]} {[%emt 00:05:06]} Nc6 {[%clk 01:20:33]} {[%emt 00:03:51]}
11. Qxd5 {[%clk 01:12:57]} {[%emt 00:04:43]} Nxd5 {[%clk 01:20:05]} {[%emt
00:00:58]} 12. dxc5 {[%clk 01:05:16]} {[%emt 00:08:11]} Bxc5 {[%clk 01:20:21]}
{[%emt 00:00:14]} 13. Ne4 {[%clk 01:04:09]} {[%emt 00:01:37]} Be7 {[%clk
01:20:00]} {[%emt 00:00:51]} 14. Bd2 {[%clk 01:03:39]} {[%emt 00:01:00]} b6
{[%clk 01:17:27]} {[%emt 00:03:03]} 15. Rac1 {[%clk 01:01:38]} {[%emt
00:02:30]} Bb7 {[%clk 01:16:32]} {[%emt 00:01:25]} 16. Nc3 {[%clk 01:00:13]}
{[%emt 00:01:56]} Nxc3 {[%clk 01:00:39]} {[%emt 00:16:23]} 17. Bxc3 {[%clk
00:59:47]} {[%emt 00:00:55]} Rac8 {[%clk 00:54:16]} {[%emt 00:06:53]} 18. Ne5
{[%clk 00:43:50]} {[%emt 00:16:27]} Nxe5 {[%clk 00:53:16]} {[%emt 00:01:31]} 19.
Bxb7 {[%clk 00:43:24]} {[%emt 00:00:56]} Rc7 {[%clk 00:53:23]} {[%emt
00:00:23]} 20. Ba6 {[%clk 00:42:16]} {[%emt 00:01:37]} Nd7 {[%clk 00:53:18]}
{[%emt 00:00:35]} 21. Bd4 {[%clk 00:30:35]} {[%emt 00:12:11]} Nc5 {[%clk
00:51:59]} {[%emt 00:01:49]} 22. Be5 {[%clk 00:29:23]} {[%emt 00:01:43]} Ra7
{[%clk 00:51:13]} {[%emt 00:01:15]} 23. Bb5 {[%clk 00:28:45]} {[%emt 00:01:09]}
f6 {[%clk 00:49:12]} {[%emt 00:02:30]} 24. Bf4 {[%clk 00:27:37]} {[%emt
00:01:38]} Rd8 {[%clk 00:49:33]} {[%emt 00:00:09]} 25. Rfd1 {[%clk 00:26:16]}
{[%emt 00:01:52]} Rxd1+ {[%clk 00:49:28]} {[%emt 00:00:35]} 26. Rxd1 {[%clk
00:26:44]} {[%emt 00:00:02]} Kf7 {[%clk 00:49:26]} {[%emt 00:00:31]} 27. Bc6
{[%clk 00:18:47]} {[%emt 00:08:27]} e5 {[%clk 00:48:34]} {[%emt 00:01:23]} 28.
Be3 {[%clk 00:18:34]} {[%emt 00:00:42]} Rc7 {[%clk 00:48:45]} {[%emt 00:00:20]}
29. Bd5+ {[%clk 00:16:46]} {[%emt 00:03:25]} Ke8 {[%clk 00:46:37]} {[%emt
00:01:31]} 30. b4 {[%clk 00:08:56]} {[%emt 00:08:20]} axb4 {[%clk 00:46:45]}
{[%emt 00:00:23]} 31. axb4 {[%clk 00:09:22]} {[%emt 00:00:04]} Na4 {[%clk
00:45:36]} {[%emt 00:01:38]} 32. b5 {[%clk 00:06:07]} {[%emt 00:03:46]} Bc5
{[%clk 00:40:25]} {[%emt 00:05:40]} 33. Bc6+ {[%clk 00:05:52]} {[%emt
00:00:45]} Ke7 {[%clk 00:40:44]} {[%emt 00:00:10]} 34. Bd2 {[%clk 00:04:15]}
{[%emt 00:02:09]} Bd4 {[%clk 00:39:59]} {[%emt 00:01:14]} 35. Rb1 {[%clk
00:04:28]} {[%emt 00:00:17]} Kd6 {[%clk 00:36:39]} {[%emt 00:03:50]} 36. Rb3
{[%clk 00:04:56]} {[%emt 00:00:02]} f5 {[%clk 00:33:41]} {[%emt 00:03:27]} 37.
Bb4+ {[%clk 00:04:27]} {[%emt 00:01:00]} Bc5 {[%clk 00:34:00]} {[%emt
00:00:10]} 38. Rd3+ {[%clk 00:03:45]} {[%emt 00:01:11]} Ke7 {[%clk 00:34:16]}
{[%emt 00:00:15]} 39. Bd2 {[%clk 00:03:55]} {[%emt 00:00:19]} h6 {[%clk
00:33:32]} {[%emt 00:01:15]} 40. e3 {[%clk 00:03:13]} {[%emt 00:01:13]} Nb2
{[%clk 00:32:36]} {[%emt 00:01:25]} 41. Rc3 {[%clk 00:29:44]} {[%emt 00:03:59]}
Ra7 {[%clk 01:00:49]} {[%emt 00:02:17]} 42. Rxc5 {[%clk 00:29:25]} {[%emt
00:00:49]} bxc5 {[%clk 01:01:10]} {[%emt 00:00:09]} 43. b6 {[%clk 00:29:46]}
{[%emt 00:00:09]} Ra1+ {[%clk 01:01:39]} 44. Kg2 {[%clk 00:30:03]} {[%emt
00:00:14]} Nc4 {[%clk 00:59:56]} {[%emt 00:02:12]} 45. Bb4 {[%clk 00:25:01]}
{[%emt 00:05:32]} Nxb6 {[%clk 00:59:29]} {[%emt 00:00:58]} 46. Bxc5+ {[%clk
00:25:24]} {[%emt 00:00:08]} Ke6 {[%clk 00:59:52]} {[%emt 00:00:06]} 47. Bxb6
{[%clk 00:25:45]} {[%emt 00:00:07]} Ra6 {[%clk 01:00:11]} {[%emt 00:00:13]} 48.
e4 {[%clk 00:25:59]} {[%emt 00:00:16]} Rxb6 {[%clk 01:00:15]} {[%emt 00:00:26]}
49. Bd5+ {[%clk 00:24:19]} {[%emt 00:02:10]} Kd6 {[%clk 01:00:27]} {[%emt
00:00:17]} 50. Ba8 {[%clk 00:23:35]} {[%emt 00:01:14]} Rb8 {[%clk 01:00:17]}
{[%emt 00:00:41]} 51. Bd5 {[%clk 00:23:52]} {[%emt 00:00:13]} Rb4 {[%clk
01:00:43]} {[%emt 00:00:04]} 52. Kf3 {[%clk 00:22:40]} {[%emt 00:01:42]} g5
{[%clk 01:00:36]} {[%emt 00:00:36]} 53. h3 {[%clk 00:22:40]} {[%emt 00:00:31]}
Kc5 {[%clk 00:59:58]} {[%emt 00:01:08]} 54. h4 {[%clk 00:20:29]} {[%emt
00:02:40]} Kd4 {[%clk 00:59:33]} {[%emt 00:00:55]} 55. Bc6 {[%clk 00:19:55]}
{[%emt 00:01:05]} Rb3+ {[%clk 00:59:36]} {[%emt 00:00:26]} 56. Kg2 {[%clk
00:20:12]} {[%emt 00:00:13]} fxe4 {[%clk 00:59:55]} {[%emt 00:00:11]} 0-1

[Event "Allsvenskan Div I 3 2023/2024: SS Manhem - SS Manhem II"]
[Site "Goteborgs schackcentrum, Vegagatan 20, Gothenburg, Sweden"]
[Date "2023.11.19"]
[Round "1.6"]
[White "Pettersson, Anders"]
[Black "Herrman, Jan"]
[Result "1-0"]
[TimeControl "90 minutes for 40 moves + 30 minutes for the rest of the game + 30 seconds per move from move one."]
[WhiteFideId "1715143"]
[BlackFideId "1731882"]
[WhiteElo "2040"]
[BlackElo "1875"]

1. d4 {[%clk 01:30:57]} {[%emt 00:00:02]} Nf6 {[%clk 01:30:53]} {[%emt
00:00:07]} 2. c4 {[%clk 01:31:16]} {[%emt 00:00:11]} e6 {[%clk 01:30:26]}
{[%emt 00:00:57]} 3. Bg5 {[%clk 01:31:35]} {[%emt 00:00:10]} Be7 {[%clk
01:29:57]} {[%emt 00:01:00]} 4. Nc3 {[%clk 01:31:45]} {[%emt 00:00:20]} d5
{[%clk 01:29:44]} {[%emt 00:00:44]} 5. e3 {[%clk 01:32:04]} {[%emt 00:00:11]}
O-O {[%clk 01:26:47]} {[%emt 00:03:26]} 6. Nf3 {[%clk 01:31:51]} {[%emt
00:00:43]} Nbd7 {[%clk 01:26:24]} {[%emt 00:00:53]} 7. Qc2 {[%clk 01:32:09]}
{[%emt 00:00:12]} h6 {[%clk 01:24:16]} {[%emt 00:02:38]} 8. h4 {[%clk
01:29:35]} {[%emt 00:03:04]} c5 {[%clk 01:22:37]} {[%emt 00:02:08]} 9. O-O-O
{[%clk 01:25:16]} {[%emt 00:04:50]} Re8 {[%clk 01:17:11]} {[%emt 00:05:57]} 10.
Bxf6 {[%clk 01:22:50]} {[%emt 00:02:55]} Nxf6 {[%clk 01:14:19]} {[%emt
00:03:22]} 11. Ne5 {[%clk 01:21:33]} {[%emt 00:01:47]} cxd4 {[%clk 01:10:10]}
{[%emt 00:04:40]} 12. exd4 {[%clk 01:21:49]} {[%emt 00:00:13]} Qa5 {[%clk
01:08:56]} {[%emt 00:01:43]} 13. g4 {[%clk 01:17:10]} {[%emt 00:05:09]} Bd6
{[%clk 01:02:13]} {[%emt 00:07:14]} 14. g5 {[%clk 01:11:06]} {[%emt 00:06:34]}
Bxe5 {[%clk 01:00:29]} {[%emt 00:02:14]} 15. dxe5 {[%clk 01:10:38]} {[%emt
00:00:58]} Ng4 {[%clk 00:58:43]} {[%emt 00:02:17]} 16. Qe2 {[%clk 01:06:14]}
{[%emt 00:04:53]} d4 {[%clk 00:57:22]} {[%emt 00:01:51]} 17. Rxd4 {[%clk
00:59:47]} {[%emt 00:06:57]} Nxe5 {[%clk 00:54:31]} {[%emt 00:03:21]} 18. gxh6
{[%clk 00:59:04]} {[%emt 00:01:13]} g6 {[%clk 00:39:17]} {[%emt 00:15:44]} 19.
h5 {[%clk 00:54:06]} {[%emt 00:05:27]} Nc6 {[%clk 00:35:37]} {[%emt 00:04:11]}
20. Rg4 {[%clk 00:48:29]} {[%emt 00:06:06]} e5 {[%clk 00:32:06]} {[%emt
00:04:02]} 21. hxg6 {[%clk 00:47:28]} {[%emt 00:01:31]} Bxg4 {[%clk 00:30:06]}
{[%emt 00:02:30]} 22. Qxg4 {[%clk 00:46:26]} {[%emt 00:01:31]} f5 {[%clk
00:30:02]} {[%emt 00:00:35]} 23. Qxf5 {[%clk 00:46:19]} {[%emt 00:00:37]} Rf8
{[%clk 00:30:11]} {[%emt 00:00:22]} 24. Qe6+ {[%clk 00:44:39]} {[%emt
00:02:09]} 1-0

[Event "Allsvenskan Div I 3 2023/2024: SS Manhem - SS Manhem II"]
[Site "Goteborgs schackcentrum, Vegagatan 20, Gothenburg, Sweden"]
[Date "2023.11.19"]
[Round "1.7"]
[White "Karlsson, Stefan"]
[Black "Outgajjouft, Said"]
[Result "1-0"]
[TimeControl "90 minutes for 40 moves + 30 minutes for the rest of the game + 30 seconds per move from move one."]
[WhiteFideId "1771183"]
[BlackFideId "1716174"]
[WhiteElo "1916"]
[BlackElo "2047"]

1. e4 {[%clk 01:30:51]} {[%emt 00:00:08]} Nf6 {[%clk 01:30:56]} {[%emt
00:00:05]} 2. Nc3 {[%clk 01:30:30]} {[%emt 00:00:51]} d5 {[%clk 01:31:09]}
{[%emt 00:00:17]} 3. e5 {[%clk 01:28:23]} {[%emt 00:02:37]} Ne4 {[%clk
01:30:37]} {[%emt 00:01:02]} 4. d4 {[%clk 01:26:40]} {[%emt 00:02:12]} Nxc3
{[%clk 01:31:00]} {[%emt 00:00:08]} 5. bxc3 {[%clk 01:27:06]} {[%emt 00:00:05]}
c5 {[%clk 01:30:14]} {[%emt 00:01:16]} 6. Bb5+ {[%clk 01:13:49]} {[%emt
00:13:47]} Nc6 {[%clk 01:28:21]} {[%emt 00:02:22]} 7. Ne2 {[%clk 01:02:26]}
{[%emt 00:11:53]} Qb6 {[%clk 01:22:32]} {[%emt 00:06:19]} 8. Rb1 {[%clk
00:58:44]} {[%emt 00:04:11]} a6 {[%clk 01:08:55]} {[%emt 00:14:09]} 9. dxc5
{[%clk 00:56:13]} {[%emt 00:03:01]} Qa5 {[%clk 00:58:42]} {[%emt 00:10:42]} 10.
Bxc6+ {[%clk 00:56:31]} {[%emt 00:00:12]} bxc6 {[%clk 00:59:05]} {[%emt
00:00:07]} 11. Be3 {[%clk 00:51:53]} {[%emt 00:05:07]} e6 {[%clk 00:51:21]}
{[%emt 00:08:15]} 12. Qd4 {[%clk 00:43:42]} {[%emt 00:08:41]} Qxa2 {[%clk
00:49:08]} {[%emt 00:02:43]} 13. Qb4 {[%clk 00:41:30]} {[%emt 00:02:41]} a5
{[%clk 00:40:30]} {[%emt 00:09:09]} 14. Qb6 {[%clk 00:40:58]} {[%emt 00:01:02]}
Bd7 {[%clk 00:40:35]} {[%emt 00:00:24]} 15. Rb3 {[%emt 00:31:37]} Qxc2 {[%clk
00:19:06]} {[%emt 00:08:28]} 16. Nd4 {[%clk 00:23:24]} {[%emt 00:00:27]} Qd3
{[%clk 00:19:21]} {[%emt 00:00:15]} 17. Nxc6 {[%clk 00:21:06]} {[%emt
00:02:48]} a4 {[%clk 00:17:13]} {[%emt 00:02:39]} 18. Qb7 {[%clk 00:19:36]}
{[%emt 00:02:00]} Rc8 {[%clk 00:16:05]} {[%emt 00:01:38]} 19. Nb8 {[%clk
00:19:30]} {[%emt 00:00:36]} Rd8 {[%clk 00:15:26]} {[%emt 00:01:10]} 20. c6
{[%clk 00:19:17]} {[%emt 00:00:43]} Bc8 {[%clk 00:15:14]} {[%emt 00:00:42]} 21.
Qb5 {[%clk 00:18:38]} {[%emt 00:01:08]} Qxb5 {[%clk 00:07:09]} {[%emt
00:08:35]} 22. Rxb5 {[%clk 00:19:01]} {[%emt 00:00:06]} d4 {[%clk 00:07:35]}
{[%emt 00:00:04]} 23. Bxd4 {[%clk 00:16:53]} {[%emt 00:02:38]} Rd5 {[%clk
00:05:58]} {[%emt 00:02:08]} 24. Rxd5 {[%clk 00:16:07]} {[%emt 00:01:16]} exd5
{[%clk 00:06:27]} 25. Kd2 {[%clk 00:15:33]} {[%emt 00:01:03]} Kd8 {[%clk
00:05:53]} {[%emt 00:01:04]} 26. Bb6+ {[%clk 00:15:52]} {[%emt 00:00:11]} Ke7
{[%clk 00:06:21]} {[%emt 00:00:03]} 27. Ra1 {[%clk 00:11:51]} {[%emt 00:04:30]}
Ke6 {[%clk 00:06:43]} {[%emt 00:00:08]} 28. f4 {[%clk 00:10:02]} {[%emt
00:02:19]} a3 {[%clk 00:05:41]} {[%emt 00:01:33]} 29. Ke3 {[%clk 00:09:05]}
{[%emt 00:01:26]} g5 {[%clk 00:02:04]} {[%emt 00:04:07]} 30. fxg5 {[%clk
00:06:12]} {[%emt 00:03:23]} Rg8 {[%clk 00:02:27]} {[%emt 00:00:07]} 31. Kf4
{[%clk 00:05:39]} {[%emt 00:01:03]} h6 {[%clk 00:02:40]} {[%emt 00:00:18]} 32.
Bd8 {[%clk 00:05:09]} {[%emt 00:01:00]} Bg7 {[%clk 00:00:53]} {[%emt 00:02:16]}
33. Bf6 {[%clk 00:04:24]} {[%emt 00:01:14]} hxg5+ {[%clk 00:01:22]} {[%emt
00:00:02]} 34. Ke3 {[%clk 00:04:14]} {[%emt 00:00:40]} Bxf6 {[%clk 00:01:08]}
{[%emt 00:00:45]} 35. exf6 {[%clk 00:04:39]} {[%emt 00:00:04]} Kxf6 {[%clk
00:01:33]} {[%emt 00:00:05]} 36. Rxa3 {[%clk 00:04:03]} {[%emt 00:01:06]} Be6
{[%clk 00:00:53]} {[%emt 00:01:11]} 37. Na6 {[%clk 00:00:59]} {[%emt 00:03:33]}
Ra8 {[%clk 00:30:27]} {[%emt 00:00:56]} 1-0